fUSD/lending_fUSD_20260108
["ID","MTS","AMOUNT","RATE_DAILY","PERIOD"]
[400930183,1767865846115,-200.589792,0.00016506,2]
[400930185,1767865846124,-1000.0,0.00016515,2]
[400930187,1767865846133,-312.84,0.00016517,2]
[400930189,1767865846143,-500.0,0.00016548,2]
[400930191,1767865846152,-765.26634378,0.00016555,2]
[400930193,1767865846161,-195.08159117,0.00016602,2]
[400930195,1767865846170,-2028.45,0.00016622,2]
[400930197,1767865846180,-1252.0,0.00016623,2]
[400930199,1767865846188,-833.0,0.0001672,2]
[400930201,1767865846198,-162.0,0.0001672,2]
[400930203,1767865846207,-162.0,0.0001672,2]
[400930205,1767865846216,-833.0,0.0001672,2]
[400930207,1767865846224,-162.0,0.0001672,2]
[400930209,1767865846234,-162.0,0.0001672,2]
[400930211,1767865846243,-833.0,0.0001672,2]
[400930213,1767865846252,-833.0,0.0001672,2]
[400930215,1767865846261,-833.0,0.0001672,2]
[400930217,1767865846270,-162.0,0.0001672,2]
[400930219,1767865846280,-162.0,0.0001672,2]
[400930221,1767865846291,-1000.0,0.000168,2]
[400930223,1767865846300,-157.72323008,0.00016809,2]
[400930225,1767865846309,-1347.91055096,0.00016824,2]
[400930227,1767865846319,-620.05,0.00016825,2]
[400930229,1767865846330,-1152.0,0.00016862,2]
[400930231,1767865846341,-1152.0,0.00016862,2]
[400930233,1767865846350,-2028.57009015,0.00016896,2]
[400930235,1767865846360,-663.93287602,0.00016913,2]
[400930237,1767865846370,-2500.0,0.00016954,2]
[400930239,1767865846380,-2500.0,0.00016954,2]
[400930241,1767865846389,-2500.0,0.00016954,2]
[400930243,1767865846399,-2500.0,0.00016954,2]
[400930245,1767865846408,-2500.0,0.00016954,2]
[400930247,1767865846417,-2005.81602002,0.00016954,2]
[400930249,1767865846427,-2500.0,0.00016954,2]
[400930251,1767865846437,-2500.0,0.00016954,2]
[400930253,1767865846447,-4609.0,0.0001697,2]
[400930255,1767865846456,-29199.4511288,0.00016993,2]
[400930257,1767865846466,-919.0,0.00016999,2]
[400930259,1767865846475,-1375.17747762,0.00017,2]
[400930261,1767865846485,-250.0,0.00017,2]
[400930263,1767865846494,-1000.0,0.00017003,2]
[400930265,1767865846504,-171.3,0.00017013,2]
[400930267,1767865846514,-175.14,0.00017013,2]
[400930269,1767865846523,-1000.0,0.00017024,2]
[400930271,1767865846533,-833.0,0.0001704,2]
[400930273,1767865846543,-833.0,0.0001704,2]
[400930275,1767865846552,-833.0,0.0001704,2]
[400930277,1767865846562,-833.0,0.0001704,2]
[400930279,1767865846571,-833.0,0.0001704,2]
[400930281,1767865846581,-833.0,0.0001704,2]
[400930283,1767865846590,-833.0,0.0001704,2]
[400930285,1767865846600,-833.0,0.0001704,2]
[400930287,1767865846609,-162.0,0.0001704,2]
[400930289,1767865846621,-182.0,0.0001704,2]
[400930291,1767865846630,-833.0,0.0001704,2]
[400930293,1767865846639,-833.0,0.0001704,2]
[400930295,1767865846651,-954.05,0.00017041,2]
[400930297,1767865846660,-23366.1324032,0.00017065,2]
[400930299,1767865846669,-1442.74102883,0.00017068,2]
[400930301,1767865846678,-5242.82669963,0.00017069,2]
[400930303,1767865846688,-2276.96201759,0.0001707,2]
[400930305,1767865846698,-1561.43224408,0.00017078,2]
[400930307,1767865846708,-921300.9389016,0.00017088,2]
[400930309,1767865846718,-1382.9,0.00017093,2]
[400930311,1767865846729,-20452.74518303,0.000171,2]
[400930313,1767865846739,-1000.0,0.00017112,2]
[400930315,1767865846748,-1000.0,0.00017136,2]
[400930317,1767865846757,-150.0,0.00017146,2]
[400930319,1767865846774,-1000.0,0.00017168,2]
[400930321,1767865846789,-200.0,0.00017174,2]
[400930323,1767865846798,-1382.9,0.00017175,2]
[400930325,1767865846807,-1111.83,0.00017178,2]
[400930326,1767865846817,-300.0,0.00017178,2]
[400930328,1767865846826,-171.35,0.00017178,2]
[400930330,1767865846836,-171.35,0.00017178,2]
[400930332,1767865846845,-171.35,0.00017178,2]
[400930334,1767865846863,-469.50438451,0.00017202,2]
[400930336,1767865846873,-563.28,0.00017216,2]
[400930338,1767865846882,-642.66,0.00017224,2]
[400930340,1767865846891,-1382.9,0.00017258,2]
[400930342,1767865846900,-563.28,0.00017314,2]
[400930344,1767865846910,-554.0,0.00017328,2]
[400930346,1767865846919,-1382.9,0.0001734,2]
[400930349,1767865846929,-157.72323008,0.00017352,2]
[400930350,1767865846937,-162.0,0.0001736,2]
[400930352,1767865846946,-162.0,0.0001736,2]
[400930354,1767865846955,-833.0,0.0001736,2]
[400930356,1767865846964,-162.0,0.0001736,2]
[400930358,1767865846981,-162.0,0.0001736,2]
[400930361,1767865847000,-162.0,0.0001736,2]
[400930363,1767865847010,-833.0,0.0001736,2]
[400930364,1767865847019,-833.0,0.0001736,2]
[400930366,1767865847028,-833.0,0.0001736,2]
[400930368,1767865847037,-162.0,0.0001736,2]
[400930370,1767865847046,-162.0,0.0001736,2]
[400930372,1767865847055,-162.0,0.0001736,2]
[400930374,1767865847065,-1347.91055096,0.00017362,2]
[400930376,1767865847074,-1000.0,0.000174,2]
[400930378,1767865847084,-563.28,0.00017413,2]
[400930380,1767865847094,-1382.9,0.00017423,2]
[400930382,1767865847103,-471.7865455,0.00017452,2]
[400930384,1767865847112,-500.0,0.00017452,2]
[400930386,1767865847120,-554.0,0.00017453,2]
[400930388,1767865847130,-346.92554585,0.00017459,2]
[400930390,1767865847139,-666.72878,0.00017459,2]
[400930392,1767865847149,-599.60298507,0.0001746,2]
[400930394,1767865847159,-688.49839244,0.00017461,2]
[400930396,1767865847168,-2000.0,0.000175,2]
[400930398,1767865847177,-3000.0,0.00017502,2]
[400930400,1767865847186,-356.56087805,0.00017502,2]
[400930402,1767865847195,-1487.99755872,0.00017502,2]
[400930404,1767865847204,-3000.0,0.00017502,2]
[400930406,1767865847214,-976.3156368,0.00017502,2]
[400930408,1767865847223,-3020.5636209,0.00017502,2]
[400930410,1767865847232,-3000.0,0.00017502,2]
[400930412,1767865847241,-1382.9,0.00017505,2]
[400930414,1767865847250,-4401.0,0.00017512,2]
[400930416,1767865847260,-1042.30773041,0.00017534,2]
[400930418,1767865847268,-554.0,0.00017537,2]
[400930420,1767865847278,-14891.09072993,0.0001754,2]
[400930422,1767865847287,-150.0,0.00017547,2]
[400930424,1767865847297,-1382.9,0.00017588,2]
[400930426,1767865847307,-150.0,0.00017613,2]
[400930428,1767865847316,-1000.0,0.00017632,2]
[400930430,1767865847326,-12674.15071227,0.0001764,2]
[400930432,1767865847335,-168.0,0.00017651,2]
[400930434,1767865847346,-554.0,0.00017666,2]
[400930436,1767865847355,-1382.9,0.0001767,2]
[400930438,1767865847365,-554.0,0.00017674,2]
[400930440,1767865847375,-162.0,0.0001768,2]
[400930442,1767865847383,-833.0,0.0001768,2]
[400930444,1767865847394,-833.0,0.0001768,2]
[400930446,1767865847403,-162.0,0.0001768,2]
[400930448,1767865847413,-162.0,0.0001768,2]
[400930450,1767865847423,-833.0,0.0001768,2]
[400930452,1767865847432,-162.0,0.0001768,2]
[400930454,1767865847442,-833.0,0.0001768,2]
[400930456,1767865847451,-25000.0,0.0001768,3]
[400930458,1767865847461,-642.66,0.00017684,2]
[400930460,1767865847471,-642.66,0.00017684,2]
[400930462,1767865847480,-642.66,0.00017686,2]
[400930464,1767865847489,-25000.0,0.00017689,3]
[400930466,1767865847499,-25000.0,0.00017698,3]
[400930468,1767865847509,-500.0,0.00017699,2]
[400930470,1767865847518,-1000.0,0.000177,2]
[400930472,1767865847528,-500.0,0.00017705,2]
[400930474,1767865847537,-150.0,0.00017705,2]
[400930475,1767865847546,-500.0,0.00017705,2]
[400930478,1767865847557,-150.0,0.00017705,2]
[400930480,1767865847568,-500.0,0.00017705,2]
[400930482,1767865847577,-150.0,0.00017705,2]
[400930484,1767865847587,-150.0,0.00017705,2]
[400930485,1767865847598,-150.0,0.00017705,2]
[400930487,1767865847607,-150.0,0.00017705,2]
[400930489,1767865847617,-150.0,0.00017705,2]
[400930491,1767865847627,-500.0,0.00017705,2]
[400930493,1767865847636,-500.0,0.00017705,2]
[400930495,1767865847648,-150.6048441,0.00017705,2]
[400930496,1767865847660,-25000.0,0.00017706,3]
[400930497,1767865847669,-1000.0,0.00017709,2]
[400930498,1767865847678,-208.56,0.0001771,2]
[400930499,1767865847687,-25000.0,0.00017715,3]
[400930500,1767865847697,-4263.30904796,0.0001772,2]
[400930501,1767865847706,-4231.8917688,0.00017721,2]
[400930502,1767865847715,-9722.33422669,0.00017721,2]
[400930503,1767865847726,-15815.3955285,0.00017721,2]
[400930504,1767865847737,-22336.05866587,0.00017721,2]
[400930505,1767865847746,-29194.33298754,0.00017721,2]
[400930506,1767865847755,-25000.0,0.00017724,3]
[400930507,1767865847764,-150.0,0.00017724,2]
[400930509,1767865847773,-25000.0,0.00017733,3]
[400930511,1767865847784,-554.0,0.00017734,2]
[400930513,1767865847793,-208.56,0.0001774,2]
[400930515,1767865847802,-25000.0,0.00017742,3]
[400930517,1767865847813,-25000.0,0.0001775,3]
[400930519,1767865847822,-1382.9,0.00017753,2]
[400930521,1767865847831,-642.66,0.00017758,2]
[400930523,1767865847841,-25000.0,0.00017759,3]
[400930525,1767865847850,-500.0,0.0001776,2]
[400930527,1767865847859,-233.66248833,0.0001776,2]
[400930529,1767865847868,-500.0,0.0001776,2]
[400930542,1767865847977,-150.0,0.0001776,2]
[400930544,1767865847986,-500.0,0.0001776,2]
[400930546,1767865847995,-150.0,0.0001776,2]
[400930548,1767865848005,-150.0,0.0001776,2]
[400930550,1767865848014,-150.0,0.0001776,2]
[400930552,1767865848023,-150.0,0.0001776,2]
[400930554,1767865848032,-150.0,0.0001776,2]
[400930555,1767865848041,-500.0,0.0001776,2]
[400930557,1767865848050,-500.0,0.0001776,2]
[400930559,1767865848059,-554.0,0.00017763,2]
[400930561,1767865848068,-1000.0,0.00017765,2]
[400930563,1767865848077,-150.0,0.00017765,2]
[400930565,1767865848086,-25000.0,0.00017768,3]
[400930567,1767865848095,-208.55360576,0.0001777,2]
[400930569,1767865848105,-212.37385639,0.00017772,2]
[400930571,1767865848114,-25000.0,0.00017777,3]
[400930573,1767865848123,-554.0,0.00017785,2]
[400930575,1767865848132,-25000.0,0.00017786,3]
[400930577,1767865848141,-25000.0,0.00017794,3]
[400930579,1767865848149,-4401.0,0.00017799,2]
[400930581,1767865848158,-10000.0,0.000178,2]
[400930583,1767865848167,-554.0,0.00017801,2]
[400930585,1767865848176,-25000.0,0.00017803,3]
[400930587,1767865848186,-25000.0,0.00017812,3]
[400930589,1767865848196,-290.85072,0.00017812,2]
[400930591,1767865848205,-290.85072,0.00017812,2]
[400930593,1767865848216,-290.85072,0.00017812,2]
[400930595,1767865848225,-290.85072,0.00017812,2]
[400930597,1767865848235,-621.780773,0.00017812,2]
[400930599,1767865848244,-621.780773,0.00017812,2]
[400930601,1767865848253,-151.0,0.00017812,2]
[400930603,1767865848263,-621.780773,0.00017812,2]
[400930605,1767865848272,-500.0,0.00017815,2]
[400930607,1767865848281,-500.0,0.00017815,2]
[400930609,1767865848290,-150.0,0.00017815,2]
[400930611,1767865848300,-501.65586908,0.00017815,2]
[400930613,1767865848310,-150.0,0.00017815,2]
[400930615,1767865848319,-150.0,0.00017815,2]
[400930617,1767865848329,-150.0,0.00017815,2]
[400930619,1767865848338,-217.19962447,0.00017815,2]
[400930621,1767865848348,-500.0,0.00017815,2]
[400930623,1767865848357,-150.0,0.00017815,2]
[400930625,1767865848366,-500.88287597,0.00017815,2]
[400930627,1767865848376,-642.66,0.00017819,2]
[400930629,1767865848386,-9016.71619,0.0001782,2]
[400930631,1767865848395,-9016.71619,0.0001782,2]
[400930633,1767865848405,-25000.0,0.00017821,3]
[400930635,1767865848416,-163.172097,0.00017821,2]
[400930637,1767865848425,-163.172097,0.00017821,2]
[400930639,1767865848435,-163.172097,0.00017821,2]
[400930641,1767865848444,-163.172097,0.00017821,2]
[400930643,1767865848453,-151.0,0.00017821,2]
[400930645,1767865848462,-151.0,0.00017821,2]
[400930647,1767865848471,-151.0,0.00017821,2]
[400930649,1767865848481,-151.0,0.00017821,2]
[400930651,1767865848491,-151.0,0.00017821,2]
[400930653,1767865848500,-151.0,0.00017821,2]
[400930655,1767865848510,-289.608564,0.00017821,2]
[400930657,1767865848519,-289.608564,0.00017821,2]
[400930659,1767865848528,-289.608564,0.00017821,2]
[400930661,1767865848537,-289.608564,0.00017821,2]
[400930663,1767865848546,-25000.0,0.0001783,3]
[400930665,1767865848555,-1382.9,0.00017835,2]
[400930667,1767865848564,-151.0,0.00017838,2]
[400930669,1767865848574,-180.954169,0.00017838,2]
[400930671,1767865848583,-180.954169,0.00017838,2]
[400930673,1767865848592,-180.954169,0.00017838,2]
[400930675,1767865848601,-180.954169,0.00017838,2]
[400930677,1767865848610,-25000.0,0.00017838,3]
[400930679,1767865848619,-25000.0,0.00017847,3]
[400930680,1767865848629,-200.0,0.00017855,2]
[400930682,1767865848638,-200.0,0.00017856,2]
[400930684,1767865848651,-25000.0,0.00017856,3]
[400930686,1767865848660,-200.0,0.00017856,2]
[400930688,1767865848669,-200.0,0.00017856,2]
[400930691,1767865848679,-200.0,0.00017856,2]
[400930692,1767865848688,-9016.71619,0.0001786,2]
[400930694,1767865848698,-25000.0,0.00017865,3]
[400930696,1767865848707,-205.38896935,0.00017869,2]
[400930699,1767865848720,-549.62704522,0.00017869,2]
[400930701,1767865848729,-174.74090706,0.00017869,2]
[400930703,1767865848738,-357.48560146,0.00017869,2]
[400930705,1767865848747,-177.4888516,0.00017872,3]
[400930707,1767865848756,-25000.0,0.00017874,3]
[400930709,1767865848765,-151.0,0.00017874,2]
[400930711,1767865848774,-151.0,0.00017874,2]
[400930713,1767865848783,-165.913293,0.00017874,2]
[400930715,1767865848793,-9016.71619,0.0001788,2]
[400930717,1767865848802,-642.66,0.00017882,2]
[400930719,1767865848811,-25000.0,0.00017882,3]
[400930721,1767865848820,-1000.0,0.00017888,2]
[400930723,1767865848829,-25000.0,0.00017891,3]
[400930725,1767865848838,-787.62614361,0.00017893,2]
[400930727,1767865848847,-157.72323008,0.00017894,2]
[400930728,1767865848856,-7148.26358025,0.000179,3]
[400930731,1767865848865,-1442.74102883,0.000179,2]
[400930732,1767865848874,-25000.0,0.000179,3]
[400930735,1767865848884,-765.26634378,0.000179,2]
[400930737,1767865848893,-225.48366902,0.000179,2]
[400930739,1767865848902,-1347.91055096,0.000179,2]
[400930741,1767865848911,-197.0859974,0.000179,2]
[400930743,1767865848921,-15709.0,0.000179,2]
[400930745,1767865848930,-232.0,0.00017911,2]
[400930747,1767865848939,-1000.0,0.00017918,2]
[400930749,1767865848948,-1382.9,0.00017918,2]
[400930751,1767865848956,-150.0,0.00017953,2]
[400930753,1767865848965,-150.0,0.0001796,2]
[400930754,1767865848974,-500.0,0.00017973,2]
[400930756,1767865848982,-150.0,0.00017973,2]
[400930758,1767865848992,-500.0,0.00017973,2]
[400930760,1767865849001,-500.0,0.00017973,2]
[400930762,1767865849010,-150.49880534,0.00017973,2]
[400930764,1767865849019,-500.0,0.00017973,2]
[400930766,1767865849028,-500.0,0.00017973,2]
[400930768,1767865849037,-426.73386812,0.00017973,2]
[400930770,1767865849047,-500.0,0.00017973,2]
[400930772,1767865849056,-500.0,0.00017973,2]
[400930774,1767865849065,-500.75581913,0.00017973,2]
[400930776,1767865849074,-500.17178809,0.00017973,2]
[400930778,1767865849083,-500.0,0.00017973,2]
[400930780,1767865849092,-500.0,0.00017973,2]
[400930782,1767865849101,-500.0,0.00017973,2]
[400930784,1767865849110,-500.0,0.00017973,2]
[400930786,1767865849121,-500.0,0.00017973,2]
[400930788,1767865849130,-501.18870733,0.00017973,2]
[400930790,1767865849139,-500.0,0.00017973,2]
[400930792,1767865849148,-338.62982115,0.00017973,2]
[400930794,1767865849158,-500.0,0.00017973,2]
[400930796,1767865849167,-500.0,0.00017982,2]
[400930798,1767865849176,-152.75103688,0.00017982,2]
[400930800,1767865849185,-642.66,0.00017996,2]
[400930802,1767865849194,-642.66,0.00017996,2]
[400930804,1767865849203,-642.66,0.00017996,2]
[400930806,1767865849211,-642.66,0.00017996,2]
[400930808,1767865849221,-642.66,0.00017996,2]
[400930810,1767865849230,-642.66,0.00017996,2]
[400930812,1767865849239,-642.66,0.00017996,2]
[400930814,1767865849248,-642.67716988,0.00017996,2]
[400930816,1767865849256,-200.589792,0.00017997,2]
[400930818,1767865849265,-171.18779201,0.00017999,2]
[400930820,1767865849274,-11518.53087648,0.00017999,2]
[400930822,1767865849283,-300.0,0.00017999,2]
[400930824,1767865849292,-666.0,0.00017999,2]
[400930826,1767865849301,-1106.18518596,0.00017999,2]
[400930828,1767865849310,-300.0,0.00017999,2]
[400930830,1767865849322,-671.59374208,0.00017999,2]
[400930832,1767865849331,-678.96454454,0.00017999,2]
[400930834,1767865849340,-300.0,0.00017999,2]
[400930836,1767865849349,-666.0,0.00017999,2]
[400930838,1767865849359,-300.0,0.00017999,2]
[400930840,1767865849369,-666.0,0.00017999,2]
[400930842,1767865849378,-300.0,0.00017999,2]
[400930844,1767865849387,-732.18530352,0.00017999,2]
[400930846,1767865849398,-5970.77362135,0.00017999,2]
[400930848,1767865849407,-7821.77449927,0.00017999,2]
[400930850,1767865849416,-2398318.53126124,0.00018,2]
[400930931,1767865850149,-3341.54631403,0.00018,2]
[400930933,1767865850160,-373.38091558,0.00018,2]
[400930936,1767865850183,-232.028091,0.00017812,2]
[400930938,1767865850192,-6537.43660555,0.00018,2]
[400930941,1767865850203,-349.43400439,0.00018,2]
[400930945,1767865850235,-83201.55049431,0.00018,2]
[400930947,1767865850248,-90428.14720612,0.00018,2]
[400930950,1767865850267,-638.55537377,0.00018,2]
[400930974,1767865850482,-621.780773,0.00017812,2]
[400930976,1767865850492,-232.028091,0.00017812,2]
[400930978,1767865850502,-2150483.24229593,0.00018,2]
[400930980,1767865850512,-150.0,0.00018,2]
[400930982,1767865850521,-512.89819875,0.00018,2]
[400930984,1767865850531,-512.89819875,0.00018,2]
[400930985,1767865850540,-512.89819875,0.00018,2]
[400930986,1767865850550,-512.89819875,0.00018,2]
[400930987,1767865850559,-512.89819875,0.00018,2]
[400930988,1767865850568,-512.89819875,0.00018,2]
[400930989,1767865850578,-512.89819875,0.00018,2]
[400930990,1767865850587,-512.89819875,0.00018,2]
[400930991,1767865850597,-512.89819875,0.00018,2]
[400930992,1767865850606,-512.89819874,0.00018,2]
[400930993,1767865850616,-512.89819874,0.00018,2]
[400930994,1767865850625,-512.89819874,0.00018,2]
[400930995,1767865850634,-512.89819874,0.00018,2]
[400930996,1767865850644,-512.89819874,0.00018,2]
[400930998,1767865850657,-512.89819874,0.00018,2]
[400931000,1767865850666,-512.89819874,0.00018,2]
[400931002,1767865850675,-512.89819874,0.00018,2]
[400931004,1767865850685,-512.89819874,0.00018,2]
[400931006,1767865850695,-1929.64738865,0.00018,2]
[400931008,1767865850704,-512.89819874,0.00018,2]
[400931010,1767865850713,-512.89819874,0.00018,2]
[400931012,1767865850723,-250.0,0.00018,2]
[400931014,1767865850733,-215.166,0.00018,2]
[400931016,1767865850744,-210.242,0.00018,2]
[400931018,1767865850754,-1083.61,0.00018,7]
[400931020,1767865850763,-226.419,0.00018,2]
[400931023,1767865850773,-250.0,0.00018,2]
[400931024,1767865850785,-157.369,0.00018,2]
[400931027,1767865850795,-150.0,0.00018,2]
[400931029,1767865850804,-3028.81862453,0.00018,2]
[400931031,1767865850814,-150.0,0.00018,2]
[400931033,1767865850823,-243.342,0.00018,2]
[400931035,1767865850833,-3686.71076323,0.00018,2]
[400931037,1767865850843,-150.0,0.00018,2]
[400931039,1767865850853,-190.919,0.00018,2]
[400931041,1767865850862,-10696.31378785,0.00018,2]
[400931043,1767865850872,-163.809,0.00018,2]
[400931045,1767865850881,-211.956,0.00018,2]
[400931047,1767865850890,-250.0,0.00018,2]
[400931049,1767865850900,-228.51,0.00018,2]
[400931051,1767865850909,-168.0,0.00018,2]
[400931053,1767865850918,-1000.0,0.00018,2]
[400931055,1767865850927,-1000.0,0.00018,2]
[400931057,1767865850937,-1000.0,0.00018,2]
[400931059,1767865850947,-1000.0,0.00018,2]
[400931061,1767865850956,-1000.0,0.00018,2]
[400931063,1767865850966,-1000.0,0.00018,2]
[400931066,1767865850975,-1142.61824791,0.00018,2]
[400931068,1767865850985,-5584680.82683809,0.00018,2]
[400931070,1767865850998,-965.92,0.00018,2]
[400931151,1767865851763,-1.7e-07,0.00018,2]
[400931218,1767865852384,-151.0,0.00014369,2]
[400931220,1767865852395,-151.0,0.00014369,2]
[400931222,1767865852405,-171.35,0.00017178,2]
[400931224,1767865852414,-151.0,0.00017812,2]
[400931226,1767865852424,-232.028091,0.00017812,2]
[400931228,1767865852434,-232.028091,0.00017812,2]
[400931230,1767865852444,-1298.56652548,0.00018,2]
[400931232,1767865852455,-4185.18066026,0.00018,2]
[400931235,1767865852468,-27223.85636467,0.00018,2]
[400931257,1767865852675,-151.0,0.00017812,2]
[400931259,1767865852684,-5248.29888568,0.00018,2]
[400931309,1767865853155,-7415.94707886,0.00018,2]
[400931312,1767865853171,-332.818322,0.00018,2]
[400933168,1767865872534,500.0,0.00011532,2]
[400933181,1767865872760,3279.58285265,0.000145,30]
[400934036,1767865916461,516.98726626,0.0003287,120]
[400934037,1767865924021,9314.70679415,0.00011492,2]
[400934038,1767865943704,227.44219373,0.00032877,120]
[400934377,1767866042039,300.0,0.00011492,2]
[400934388,1767866101222,300.0,0.00011491,2]
[400934389,1767866101260,1200.0,0.00011491,2]
[400934390,1767866101349,300.0,0.00011491,2]
[400934391,1767866101391,300.0,0.00011491,2]
[400934401,1767866153548,999.0,0.00013863,3]
[400934414,1767866281304,300.0,0.00011491,2]
[400934415,1767866294438,919.0,0.00011491,2]
[400934422,1767866401238,300.0,0.00011491,2]
[400934423,1767866401333,1200.0,0.00011491,2]
[400934424,1767866401373,300.0,0.00011491,2]
[400934425,1767866403076,150.0,0.00011492,2]
[400934426,1767866405852,244.0,0.00011492,2]
[400934427,1767866439407,1852.42,0.00011298,2]
[400934429,1767866444725,500.0,0.00011492,2]
[400934430,1767866444794,500.0,0.00011492,2]
[400934431,1767866444871,500.0,0.00011492,2]
[400934432,1767866444940,500.0,0.00011492,2]
[400934433,1767866445014,334.59,0.00011492,2]
[400934434,1767866445040,165.41,0.00011492,2]
[400934435,1767866445104,200.0,0.00011492,2]
[400934436,1767866460310,500.0,0.00011492,2]
[400934437,1767866460359,432.24933858,0.00011492,2]
[400934438,1767866460406,500.0,0.00011492,2]
[400934439,1767866460461,500.0,0.00011492,2]
[400934440,1767866460506,500.0,0.00011492,2]
[400934441,1767866460564,500.0,0.00011492,2]
[400934442,1767866460602,481.61066553,0.00011492,2]
[400934443,1767866460656,500.0,0.00011492,2]
[400934444,1767866460707,500.0,0.00011492,2]
[400934445,1767866460760,500.0,0.00011492,2]
[400934446,1767866460817,500.0,0.00011492,2]
[400934447,1767866460872,500.0,0.00011492,2]
[400934448,1767866460920,500.0,0.00011492,2]
[400934449,1767866460965,500.0,0.00011492,2]
[400934450,1767866461011,500.0,0.00011492,2]
[400934451,1767866461061,500.0,0.00011492,2]
[400934452,1767866461123,500.0,0.00011492,2]
[400934453,1767866461169,500.0,0.00011492,2]
[400934454,1767866461222,500.0,0.00011492,2]
[400934455,1767866461262,220.73999589,0.00011492,2]
[400934456,1767866461287,279.26000411,0.00011492,2]
[400934457,1767866461332,500.0,0.00011492,2]
[400934458,1767866461373,500.0,0.00011492,2]
[400934459,1767866461420,500.0,0.00011492,2]
[400934460,1767866461461,500.0,0.00011492,2]
[400934461,1767866461505,500.0,0.00011492,2]
[400934462,1767866461558,500.0,0.00011492,2]
[400934463,1767866461599,500.0,0.00011492,2]
[400934464,1767866461641,500.0,0.00011492,2]
[400934465,1767866461682,500.0,0.00011492,2]
[400934466,1767866461724,500.0,0.00011492,2]
[400934467,1767866461764,500.0,0.00011492,2]
[400934468,1767866461803,500.0,0.00011492,2]
[400934469,1767866461851,500.0,0.00011492,2]
[400934470,1767866461894,500.0,0.00011492,2]
[400934471,1767866461934,500.0,0.00011492,2]
[400934472,1767866461979,500.0,0.00011492,2]
[400934473,1767866462022,500.0,0.00011492,2]
[400934474,1767866462061,500.0,0.00011492,2]
[400934475,1767866462110,500.0,0.00011492,2]
[400934476,1767866462155,220.74999589,0.00011492,2]
[400934477,1767866462179,279.25000411,0.00011492,2]
[400934478,1767866462225,500.0,0.00011492,2]
[400934479,1767866462268,500.0,0.00011492,2]
[400934480,1767866462310,455.33338277,0.00011492,2]
[400934481,1767866462352,500.0,0.00011492,2]
[400934482,1767866462454,500.0,0.00011492,2]
[400934483,1767866462498,500.0,0.00011492,2]
[400934484,1767866462556,500.0,0.00011492,2]
[400934485,1767866462600,500.0,0.00011492,2]
[400934486,1767866462650,500.0,0.00011492,2]
[400934487,1767866462695,500.0,0.00011492,2]
[400934488,1767866462736,500.0,0.00011492,2]
[400934489,1767866462798,500.0,0.00011492,2]
[400934490,1767866462842,500.0,0.00011492,2]
[400934491,1767866462886,500.0,0.00011492,2]
[400934492,1767866462934,500.0,0.00011492,2]
[400934493,1767866462983,500.0,0.00011492,2]
[400934494,1767866463030,500.0,0.00011492,2]
[400934495,1767866463101,500.0,0.00011492,2]
[400934496,1767866463160,500.0,0.00011492,2]